fUST/lending_fUST_20240807
["ID","MTS","AMOUNT","RATE_DAILY","PERIOD"]
[334336364,1722991845830,-2123.95,0.00032876,14]
[334336366,1722991845840,-500.0,0.00032876,14]
[334336368,1722991845849,-500.0,0.00032876,14]
[334336370,1722991845859,-500.0,0.00032876,14]
[334336372,1722991845868,-500.0,0.00032876,14]
[334336374,1722991845878,-1669.96,0.00032876,14]
[334336376,1722991845887,-2531.7,0.00032876,14]
[334336378,1722991845897,-500.0,0.00032876,14]
[334336380,1722991845906,-623.84,0.00032876,14]
[334336382,1722991845916,-500.0,0.00032876,14]
[334336384,1722991845925,-500.0,0.00032876,14]
[334336386,1722991845933,-500.0,0.00032876,14]
[334336388,1722991845943,-500.0,0.00032876,14]
[334336390,1722991845955,-500.0,0.00032876,14]
[334336392,1722991845967,-10688.73,0.00032876,14]
[334336394,1722991845977,-500.0,0.00032876,14]
[334336396,1722991845987,-500.000001,0.00032876,14]
[334336398,1722991845997,-581.89,0.00032876,14]
[334336400,1722991846007,-602.25,0.00032876,14]
[334336402,1722991846019,-500.0,0.00032876,14]
[334336404,1722991846028,-1548.89,0.00032876,14]
[334336406,1722991846041,-500.0,0.00032876,14]
[334336408,1722991846050,-500.0,0.00032876,14]
[334336410,1722991846059,-1416.67,0.00032876,14]
[334336412,1722991846069,-615.6,0.00032876,14]
[334336414,1722991846078,-500.0,0.00032876,14]
[334336416,1722991846089,-989.19,0.00032876,14]
[334336418,1722991846099,-800.15,0.00032876,14]
[334336420,1722991846110,-500.3,0.00032876,14]
[334336422,1722991846121,-500.0,0.00032876,14]
[334336424,1722991846131,-3539.06,0.00032876,14]
[334336426,1722991846141,-500.0,0.00032876,14]
[334336428,1722991846151,-1326.13,0.00032876,14]
[334336430,1722991846160,-500.0,0.00032876,14]
[334336432,1722991846171,-1246.38,0.00032876,14]
[334336434,1722991846181,-1189.74,0.00032876,14]
[334336436,1722991846191,-1349.71,0.00032876,14]
[334336439,1722991846206,-500.0,0.00032876,14]
[334336441,1722991846216,-777.26,0.00032876,14]
[334336443,1722991846225,-500.0,0.00032876,14]
[334336445,1722991846236,-500.0,0.00032876,14]
[334336447,1722991846246,-3128.6,0.00032876,14]
[334336449,1722991846255,-3954.74,0.00032876,14]
[334336451,1722991846264,-1548.52,0.00032876,14]
[334336453,1722991846273,-2197.56,0.00032876,14]
[334336454,1722991846283,-500.0,0.00032876,14]
[334336456,1722991846292,-617.44,0.00032876,14]
[334336459,1722991846302,-500.0,0.00032876,14]
[334336460,1722991846311,-12934.2,0.00032876,14]
[334336462,1722991846320,-555.44,0.00032876,14]
[334336464,1722991846330,-151.0,0.00032876,7]
[334336466,1722991846339,-151.0,0.00032876,7]
[334336468,1722991846349,-151.0,0.00032876,7]
[334336470,1722991846358,-500.0,0.00032876,14]
[334336472,1722991846368,-151.0,0.00032876,7]
[334336474,1722991846378,-151.0,0.00032876,7]
[334336477,1722991846389,-500.0,0.00032876,14]
[334336479,1722991846399,-151.0,0.00032876,7]
[334336481,1722991846409,-500.0,0.00032876,14]
[334336483,1722991846418,-334.038598,0.00032876,7]
[334336485,1722991846427,-334.038598,0.00032876,7]
[334336486,1722991846438,-334.038598,0.00032876,7]
[334336488,1722991846451,-500.0,0.00032876,14]
[334336490,1722991846468,-610.18,0.00032876,14]
[334336492,1722991846477,-151.0,0.00032876,7]
[334336494,1722991846487,-185.972493,0.00032876,7]
[334336496,1722991846497,-500.0,0.00032876,14]
[334336498,1722991846508,-151.0,0.00032876,7]
[334336500,1722991846517,-729.81,0.00032876,14]
[334336502,1722991846526,-600.67,0.00032876,14]
[334336504,1722991846537,-151.0,0.00032876,7]
[334336506,1722991846548,-151.0,0.00032876,7]
[334336508,1722991846557,-151.0,0.00032876,7]
[334336510,1722991846566,-151.0,0.00032876,7]
[334336512,1722991846576,-500.0,0.00032876,14]
[334336514,1722991846586,-151.0,0.00032876,7]
[334336516,1722991846596,-334.038598,0.00032876,7]
[334336518,1722991846605,-151.0,0.00032876,7]
[334336520,1722991846615,-151.0,0.00032876,7]
[334336522,1722991846624,-334.038598,0.00032876,7]
[334336524,1722991846634,-2852.65,0.00032876,14]
[334336526,1722991846644,-1914.96,0.00032876,14]
[334336528,1722991846653,-334.038598,0.00032876,7]
[334336530,1722991846663,-334.038598,0.00032876,7]
[334336532,1722991846672,-2602.54,0.00032876,14]
[334336534,1722991846681,-2860.28,0.00032876,14]
[334336536,1722991846691,-500.0,0.00032876,14]
[334336538,1722991846703,-334.038598,0.00032876,7]
[334336539,1722991846712,-316.62048415,0.00032876,14]
[334336540,1722991846722,-334.038598,0.00032876,7]
[334336542,1722991846731,-334.038598,0.00032876,7]
[334336543,1722991846741,-1488.69,0.00032876,14]
[334336544,1722991846751,-334.038598,0.00032876,7]
[334336545,1722991846761,-1115.11,0.00032876,14]
[334336546,1722991846771,-334.038598,0.00032876,7]
[334336547,1722991846780,-151.0,0.00032876,7]
[334336548,1722991846790,-334.038598,0.00032876,7]
[334336549,1722991846800,-151.0,0.00032876,7]
[334336550,1722991846810,-334.038598,0.00032876,7]
[334336551,1722991846819,-500.0,0.00032876,14]
[334336552,1722991846829,-151.0,0.00032876,7]
[334336553,1722991846838,-532.52,0.00032876,14]
[334336554,1722991846848,-2135.19,0.00032876,14]
[334336555,1722991846857,-500.0,0.00032876,10]
[334336556,1722991846867,-151.0,0.00032876,7]
[334336557,1722991846876,-151.0,0.00032876,7]
[334336558,1722991846886,-151.0,0.00032876,7]
[334336559,1722991846895,-151.0,0.00032876,7]
[334336560,1722991846905,-151.0,0.00032876,7]
[334336561,1722991846914,-151.0,0.00032876,7]
[334336562,1722991846924,-151.0,0.00032876,7]
[334336563,1722991846934,-3821.46,0.00032876,14]
[334336564,1722991846944,-747.47,0.00032876,14]
[334336565,1722991846956,-3278.43,0.00032876,14]
[334336566,1722991846970,-500.0,0.00032876,14]
[334336567,1722991846979,-808.18,0.00032876,14]
[334336568,1722991846989,-500.0,0.00032876,14]
[334336569,1722991846999,-2529.64,0.00032876,14]
[334336570,1722991847010,-1147.4,0.00032876,14]
[334336571,1722991847019,-1498.82,0.00032876,14]
[334336572,1722991847029,-597.32,0.00032876,14]
[334336573,1722991847040,-500.0,0.00032876,14]
[334336574,1722991847051,-500.0,0.00032876,14]
[334336575,1722991847061,-893.34,0.00032876,14]
[334336576,1722991847071,-500.0,0.00032876,14]
[334336577,1722991847080,-500.0,0.00032876,14]
[334336578,1722991847090,-151.176751,0.00032876,7]
[334336579,1722991847100,-500.0,0.00032876,14]
[334336580,1722991847110,-151.0,0.00032876,7]
[334336581,1722991847119,-902.06,0.00032876,14]
[334336582,1722991847130,-3069.73,0.00032876,14]
[334336583,1722991847139,-500.0,0.00032876,14]
[334336584,1722991847148,-177.154251,0.00032876,7]
[334336585,1722991847158,-177.154251,0.00032876,7]
[334336586,1722991847168,-177.154251,0.00032876,7]
[334336587,1722991847178,-177.154251,0.00032876,7]
[334336588,1722991847188,-177.154251,0.00032876,7]
[334336589,1722991847201,-177.154251,0.00032876,7]
[334336590,1722991847210,-177.154251,0.00032876,7]
[334336591,1722991847220,-4977.93,0.00032876,14]
[334336592,1722991847230,-151.0,0.00032876,7]
[334336593,1722991847240,-177.154251,0.00032876,7]
[334336594,1722991847250,-177.154251,0.00032876,7]
[334336595,1722991847260,-177.154251,0.00032876,7]
[334336596,1722991847270,-177.154251,0.00032876,7]
[334336597,1722991847281,-177.154251,0.00032876,7]
[334336598,1722991847290,-566.48,0.00032876,14]
[334336599,1722991847300,-177.154251,0.00032876,7]
[334336600,1722991847310,-177.154251,0.00032876,7]
[334336601,1722991847320,-5116.46,0.00032876,14]
[334336602,1722991847330,-801.27,0.00032876,14]
[334336603,1722991847340,-151.0,0.00032876,7]
[334336604,1722991847351,-779.46,0.00032876,14]
[334336605,1722991847361,-1733.26,0.00032876,14]
[334336606,1722991847370,-500.0,0.00032876,14]
[334336607,1722991847380,-293.67012412,0.00032876,14]
[334336608,1722991847389,-151.0,0.00032876,7]
[334336609,1722991847398,-283.022821,0.00032876,7]
[334336610,1722991847409,-1516.53,0.00032876,14]
[334336611,1722991847419,-483.74379695,0.00032876,14]
[334336612,1722991847429,-500.0,0.00032876,14]
[334336613,1722991847438,-894.48,0.00032876,14]
[334336614,1722991847451,-500.0,0.00032876,14]
[334336615,1722991847460,-515.23,0.00032876,14]
[334336616,1722991847471,-1038.36,0.00032876,14]
[334336617,1722991847480,-500.0,0.00032876,14]
[334336618,1722991847490,-3582.83,0.00032876,14]
[334336619,1722991847499,-151.0,0.00032876,7]
[334336620,1722991847509,-31007.13,0.00032876,14]
[334336622,1722991847518,-191.193015,0.00032876,7]
[334336624,1722991847528,-4944.61,0.00032876,14]
[334336626,1722991847538,-981.7,0.00032876,14]
[334336628,1722991847549,-579.78,0.00032876,14]
[334336629,1722991847558,-1985.89,0.00032876,14]
[334336630,1722991847569,-1985.89,0.00032876,14]
[334336631,1722991847578,-500.0,0.00032876,14]
[334336632,1722991847588,-1985.89,0.00032876,14]
[334336633,1722991847599,-1985.89,0.00032876,14]
[334336634,1722991847610,-1985.89,0.00032876,14]
[334336635,1722991847621,-1985.89,0.00032876,14]
[334336636,1722991847632,-1985.89,0.00032876,14]
[334336637,1722991847644,-1985.89,0.00032876,14]
[334336638,1722991847655,-1985.89,0.00032876,14]
[334336639,1722991847666,-1985.89,0.00032876,14]
[334336640,1722991847676,-500.0,0.00032876,14]
[334336641,1722991847686,-1985.89,0.00032876,14]
[334336642,1722991847700,-1985.89,0.00032876,14]
[334336643,1722991847710,-1985.89,0.00032876,14]
[334336644,1722991847719,-762.68,0.00032876,14]
[334336645,1722991847729,-1985.89,0.00032876,14]
[334336646,1722991847740,-1985.89,0.00032876,14]
[334336647,1722991847752,-1985.89,0.00032876,14]
[334336648,1722991847765,-1985.89,0.00032876,14]
[334336649,1722991847776,-500.0,0.00032876,14]
[334336650,1722991847785,-500.0,0.00032876,14]
[334336651,1722991847796,-1985.89,0.00032876,14]
[334336652,1722991847805,-1985.89,0.00032876,14]
[334336653,1722991847816,-1985.89,0.00032876,14]
[334336654,1722991847825,-1985.89,0.00032876,14]
[334336655,1722991847835,-500.0,0.00032876,14]
[334336656,1722991847847,-1985.89,0.00032876,14]
[334336657,1722991847857,-500.0,0.00032876,14]
[334336658,1722991847867,-1985.89,0.00032876,14]
[334336659,1722991847877,-1985.8994313,0.00032876,14]
[334336660,1722991847887,-500.0,0.00032876,14]
[334336661,1722991847897,-500.0,0.00032876,14]
[334336662,1722991847907,-2421.01,0.00032876,14]
[334336663,1722991847917,-2785.25,0.00032876,14]
[334336664,1722991847927,-4635.61,0.00032876,14]
[334336665,1722991847937,-500.0,0.00032876,14]
[334336666,1722991847951,-500.0,0.00032876,14]
[334336667,1722991847964,-151.0,0.00032876,7]
[334336668,1722991847975,-8645.1,0.00032876,14]
[334336669,1722991847985,-569.6,0.00032876,14]
[334336670,1722991847995,-500.0,0.00032876,14]
[334336671,1722991848008,-1480.14,0.00032876,14]
[334336672,1722991848019,-1093.93,0.00032876,14]
[334336673,1722991848029,-328.925545,0.00032876,7]
[334336674,1722991848041,-328.925545,0.00032876,7]
[334336675,1722991848053,-328.925545,0.00032876,7]
[334336676,1722991848064,-2787.05,0.00032876,14]
[334336677,1722991848075,-328.925545,0.00032876,7]
[334336678,1722991848086,-7520.39,0.00032876,14]
[334336679,1722991848096,-328.925545,0.00032876,7]
[334336680,1722991848106,-807.72,0.00032876,14]
[334336681,1722991848117,-328.925545,0.00032876,7]
[334336682,1722991848127,-328.925545,0.00032876,7]
[334336683,1722991848138,-1804.22,0.00032876,14]
[334336684,1722991848149,-328.925545,0.00032876,7]
[334336685,1722991848159,-328.925545,0.00032876,7]
[334336686,1722991848170,-524.15,0.00032876,14]
[334336687,1722991848181,-328.925545,0.00032876,7]
[334336688,1722991848191,-328.925545,0.00032876,7]
[334336689,1722991848204,-771.53,0.00032876,14]
[334336690,1722991848214,-500.0,0.00032876,14]
[334336691,1722991848224,-328.925545,0.00032876,7]
[334336692,1722991848235,-328.925545,0.00032876,7]
[334336693,1722991848245,-328.925545,0.00032876,7]
[334336694,1722991848256,-21650.02,0.00032876,14]
[334336695,1722991848266,-500.0,0.00032876,14]
[334336696,1722991848277,-130.63808438,0.00032876,14]
[334336799,1722991881052,159.483367,0.00014247,2]
[334336818,1722992491430,1164.55601822,0.00027,120]
[334336819,1722992501752,1000.0,0.00027,60]
[334336827,1722992828278,306.20026734,9.999e-05,2]
[334336828,1722992841139,-253.18475952,0.00014147,2]
[334336829,1722992841160,-1362.90304929,0.00014147,2]
[334336830,1722992841182,-168.313996,0.00014247,2]
[334336831,1722992841204,-240.84967759,0.00015708,2]
[334336832,1722992841225,-568.67802251,0.00015708,2]
[334336833,1722992841251,-155.18666141,0.0001571,2]
[334336834,1722992841275,-209.22780874,0.00015712,2]
[334336835,1722992841310,-226.70195807,0.00015744,2]
[334336836,1722992841331,-403.81861762,0.00015746,2]
[334336837,1722992841357,-816.39879119,0.00016038,2]
[334336838,1722992841379,-364.70297397,0.00016095,2]
[334336839,1722992841401,-260.59602942,0.00016095,2]
[334336840,1722992841422,-1176.010466,0.00016913,2]
[334336841,1722992841446,-57.31899095,0.00017102,2]
[334336873,1722992950106,-154.60575532,0.00015712,2]
[334336874,1722992950129,-781.5,0.00017102,2]
[334336875,1722992950150,-495.69249869,0.00017102,2]
[334336876,1722992950172,-2325.86058719,0.00017102,2]
[334336877,1722992950199,-300.0,0.00017132,2]
[334336878,1722992950221,-300.0,0.00017132,2]
[334336879,1722992950244,-5426.30372461,0.00017133,2]
[334336880,1722992967196,-19473.69627539,0.00017133,2]
[334336881,1722992967224,-3000.0,0.00017202,2]
[334336882,1722992967252,-250.0,0.0001747,2]
[334336883,1722992967285,-250.0,0.00017518,2]
[334336884,1722992967317,-250.0,0.00017566,2]
[334336885,1722992967346,-250.0,0.00017614,2]
[334336886,1722992967375,-250.0,0.00017661,2]
[334336887,1722992967409,-250.0,0.00017709,2]
[334336888,1722992967451,-250.0,0.00017757,2]
[334336889,1722992967496,-250.0,0.00017805,2]
[334336890,1722992967529,-250.0,0.00017853,2]
[334336891,1722992967554,-617.60223674,0.000179,2]
[334336892,1722992967592,-500.0,0.000179,2]
[334336893,1722992967625,-500.0,0.000179,2]
[334336894,1722992967651,-508.06798962,0.000179,2]
[334336895,1722992967678,-504.02155593,0.000179,2]
[334336896,1722992967707,-500.0,0.000179,2]
[334336897,1722992967741,-500.0,0.000179,2]
[334336898,1722992967771,-500.0,0.000179,2]
[334336899,1722992967801,-500.0,0.000179,2]
[334336900,1722992967829,-500.0,0.000179,2]
[334336901,1722992967859,-500.0,0.000179,2]
[334336902,1722992967891,-500.0,0.000179,2]
[334336903,1722992967930,-500.0,0.000179,2]
[334336904,1722992967960,-500.0,0.000179,2]
[334336905,1722992967989,-500.0,0.000179,2]
[334336906,1722992968018,-500.0,0.000179,2]
[334336907,1722992968054,-443.33380049,0.000179,2]
[334336908,1722992968090,-500.0,0.000179,2]
[334336909,1722992968120,-500.0,0.000179,2]
[334336910,1722992968147,-500.0,0.000179,2]
[334336911,1722992968181,-500.0,0.000179,2]
[334336912,1722992968219,-500.0,0.000179,2]
[334336913,1722992968253,-453.88307377,0.000179,2]
[334336914,1722992968284,-500.0,0.000179,2]
[334336915,1722992968320,-500.0,0.000179,2]
[334336916,1722992968366,-500.0,0.000179,2]
[334336917,1722992968403,-500.0,0.000179,2]
[334336918,1722992968441,-500.0,0.000179,2]
[334336919,1722992968482,-500.0,0.000179,2]
[334336920,1722992968523,-500.0,0.000179,2]
[334336921,1722992968561,-500.0,0.000179,2]
[334336922,1722992968599,-500.0,0.000179,2]
[334336923,1722992968644,-500.0,0.000179,2]
[334336924,1722992968682,-500.0,0.000179,2]
[334336925,1722992968728,-500.0,0.000179,2]
[334336926,1722992968761,-500.0,0.000179,2]
[334336927,1722992968799,-500.0,0.000179,2]
[334336928,1722992968837,-432.16960521,0.000179,2]
[334336929,1722992968874,-500.0,0.000179,2]
[334336930,1722992968912,-500.0,0.000179,2]
[334336931,1722992968950,-500.0,0.000179,2]
[334336932,1722992968987,-500.0,0.000179,2]
[334336933,1722992969030,-500.0,0.000179,2]
[334336934,1722992969064,-500.0,0.000179,2]
[334336935,1722992969100,-500.0,0.000179,2]
[334336936,1722992969137,-500.0,0.000179,2]
[334336937,1722992969170,-300.0,0.000179,2]
[334336938,1722992969207,-250.0,0.00017901,2]
[334336939,1722992969244,-250.0,0.00017949,2]
[334336940,1722992969276,-250.0,0.00017997,2]
[334336941,1722992969308,-250.0,0.00018045,2]
[334336942,1722992969341,-250.0,0.00018093,2]
[334336943,1722992969374,-250.0,0.00018141,2]
[334336944,1722992969407,-250.0,0.00018189,2]
[334336945,1722992969445,-204.89089157,0.00018237,2]
[334336946,1722992972785,3609.28567796,0.00017102,2]
[334336947,1722992973238,156.78302952,0.00017102,2]
[334336948,1722992973873,2108.95048088,0.00017102,2]
[334336949,1722992974997,179.47265816,0.00017102,2]
[334336960,1722992987144,159.483367,0.00014247,2]
[334336984,1722993032520,-200.0,0.00018,2]
[334336986,1722993032529,-45.10910843,0.00018237,2]
[334336987,1722993032538,-250.0,0.00018284,2]
[334336989,1722993032548,-11.53089157,0.00018332,2]
[334336991,1722993032559,-238.46910843,0.00018332,2]
[334336993,1722993032569,-250.0,0.0001838,2]
[334336995,1722993032578,-25.39594428,0.00018773,2]
[334337003,1722993032640,-388.59672675,0.00018773,2]
[334337005,1722993032649,-35.12574861,0.00018899,2]
[334337077,1722993034165,218.5,0.00017102,2]
[334337078,1722993038260,-396.57933696,0.00017882,2]
[334337079,1722993038270,-534.02405776,0.00018701,2]
[334337080,1722993038280,-119.48000671,0.00018899,2]
[334337081,1722993038291,-154.60575532,0.00019177,2]
[334337082,1722993038300,-156.63892832,0.00019177,2]
[334337083,1722993038311,-209.90726283,0.00019256,2]
[334337084,1722993038321,-287.82937614,0.00019256,2]
[334337085,1722993038331,-400.0,0.0001937,2]
[334337086,1722993038342,-300.0,0.0001945,2]
[334337087,1722993038351,-300.0,0.0001945,2]
[334337088,1722993038366,-182.95676173,0.00019451,2]
[334337089,1722993038376,-845.65510903,0.00019451,2]
[334337090,1722993038386,-519.71041987,0.00019451,2]
[334337091,1722993038396,-196.50630212,0.00019451,2]
[334337093,1722993038406,-659.94267938,0.00019451,2]
[334337095,1722993038416,-180.51285937,0.00019451,2]
[334337096,1722993038426,-942.61257937,0.00019451,2]
[334337098,1722993038438,-727.52933543,0.00019451,2]
[334337100,1722993038448,-155.00724081,0.00019477,2]
[334337102,1722993038458,-201.32561366,0.00019477,2]
[334337103,1722993038468,-188.26910558,0.00019477,2]
[334337104,1722993038478,-159.24043179,0.00019477,2]
[334337105,1722993038488,-154.60575532,0.00019477,2]
[334337107,1722993038498,-155.0226975,0.00019477,2]
[334337109,1722993038511,-183.14226192,0.00019477,2]
[334337111,1722993038521,-154.60575532,0.00019477,2]
[334337113,1722993038531,-174.56235819,0.00019477,2]
[334337115,1722993038541,-849.56796357,0.00019547,2]
[334337117,1722993038551,-155.0690861,0.00019547,2]
[334337119,1722993038560,-301.05042954,0.00019999,2]
[334337121,1722993038570,-154.60575532,0.00019999,2]
[334337123,1722993038580,-188.40898191,0.0002,2]
[334337125,1722993038589,-1443.89362386,0.0002,2]
[334337126,1722993038599,-427.05357238,0.0002,2]
[334337128,1722993038609,-403.81861762,0.0002028,2]
[334337129,1722993038619,-155.20798663,0.0002028,2]
[334337131,1722993038629,-156.70210335,0.00020721,2]
[334337132,1722993038639,-694.1093999,0.00020721,2]
[334337134,1722993038651,-603.79164827,0.00020721,2]
[334337135,1722993038661,-155.23440676,0.00020721,2]
[334337136,1722993038671,-307.74364736,0.00020729,2]
[334337137,1722993038681,-196.2545987,0.00020729,2]
[334337138,1722993038690,-154.83742071,0.00020729,2]
[334337139,1722993038700,-351.56411653,0.00020729,2]
[334337140,1722993038710,-272.85692562,0.00021,2]
[334337141,1722993038720,-157.83841247,0.00021048,2]
[334337142,1722993038730,-420.0,0.00021191,2]
[334337143,1722993038739,-600.0,0.00021373,2]
[334337144,1722993038749,-420.0,0.00021395,2]
[334337145,1722993038761,-255.34789342,0.00021632,2]
[334337146,1722993038771,-494.3368924,0.00021642,2]
[334337147,1722993038781,-191.59604894,0.00021642,2]
[334337148,1722993038790,-543.08033697,0.00021805,2]
[334337149,1722993038800,-470.9321154,0.00021805,2]
[334337150,1722993038811,-294.13159854,0.00021805,2]
[334337151,1722993038820,-342.05014288,0.00021805,2]
[334337152,1722993038830,-253.58130554,0.00021805,2]
[334337153,1722993038840,-380.8978734,0.00021805,2]
[334337154,1722993038849,-205.1880395,0.00021906,2]
[334337155,1722993038859,-209.22780874,0.00021906,2]
[334337156,1722993038869,-587.0,0.00023087,2]
[334337157,1722993038878,-182.64765342,0.00023244,2]
[334337158,1722993038888,-587.0,0.00023535,2]
[334337159,1722993038900,-800.0,0.00023714,2]
[334337160,1722993038911,-150.0,0.00024,2]
[334337161,1722993038921,-200.0,0.00024658,15]
[334337162,1722993038930,-402.3465429,0.00025,2]
[334337163,1722993038940,-447.0,0.00025154,2]
[334337164,1722993038949,-1176.010466,0.00025369,2]
[334337165,1722993038959,-823.0,0.00025888,2]
[334337166,1722993038968,-1000.0,0.00026305,2]
[334337167,1722993038978,-383.76478598,0.00026603,2]
[334337168,1722993038989,-160.37042228,0.00026603,2]
[334337169,1722993038999,-500.0,0.00026603,2]
[334337170,1722993039013,-500.0,0.00026603,2]
[334337171,1722993039024,-373.21696052,0.00026603,2]
[334337173,1722993039035,-500.0,0.00026603,2]
[334337174,1722993039046,-2617.14311434,0.00026604,2]
[334337176,1722993039057,-2617.14311434,0.00026604,2]
[334337178,1722993039067,-785.7860439,0.0002729,2]
[334337180,1722993039077,-227.77692356,0.0002739,2]
[334337182,1722993039089,-1152.0,0.00028477,2]
[334337184,1722993039098,-785.78604385,0.00028739,2]
[334337187,1722993039108,-500.0,0.00029,30]
[334337189,1722993039118,-500.0,0.00029,30]
[334337191,1722993039127,-537.0,0.00029,30]
[334337192,1722993039136,-1200.0,0.000291,2]
[334337194,1722993039146,-1787.08296673,0.00029899,2]
[334337197,1722993039155,-248.48,0.00029959,3]
[334337199,1722993039167,-496.96,0.00029969,3]
[334337201,1722993039180,-248.48,0.00029969,3]
[334337203,1722993039190,-993.92,0.00029979,3]
[334337205,1722993039199,-4623.83421922,0.0002999,4]
[334337287,1722993040905,-9572.03291043,0.0002999,4]
[334337290,1722993040921,-10241.25407115,0.0002999,4]
[334337292,1722993040933,-41554.66177612,0.0003,2]
[334337294,1722993040944,-785.78604385,0.00030188,2]
[334337297,1722993040955,-1787.0829667,0.00030618,2]
[334337299,1722993040968,-496.96,0.00031329,3]
[334337301,1722993040981,-1787.0829667,0.00031338,2]
[334337304,1722993040994,-24437.1212008,0.00031339,4]
[334337306,1722993041012,-993.92,0.00031339,3]
[334337308,1722993041022,-496.96,0.00031339,3]
[334337310,1722993041031,-1987.84,0.00031349,3]
[334337312,1722993041042,-785.78604385,0.00031637,2]
[334337314,1722993041052,-1787.0829667,0.00032057,2]
[334337316,1722993041062,-1400.0,0.00032069,2]
[334337318,1722993041072,-3585.7327823,0.00032141,2]
[334337320,1722993041082,-153.0,0.00032466,2]
[334337322,1722993041092,-3585.7327823,0.00032562,2]
[334337324,1722993041102,-150.112233,0.000326,5]
[334337326,1722993041112,-150.112233,0.000326,6]
[334337328,1722993041123,-1197.08,0.00032602,7]
[334337331,1722993041133,-1197.08,0.00032602,7]
[334337333,1722993041144,-1197.08,0.00032602,7]
[334337335,1722993041155,-1197.08,0.00032602,7]
[334337337,1722993041165,-168.07874789,0.00032679,2]
[334337339,1722993041175,-500.0,0.00032679,2]
[334337341,1722993041185,-511.50987344,0.00032679,2]
[334337343,1722993041195,-500.0,0.00032679,2]
[334337345,1722993041206,-500.0,0.00032679,2]
[334337347,1722993041216,-245.4791877,0.00032679,2]
[334337349,1722993041226,-5753.30987293,0.0003268,30]
[334337351,1722993041237,-2753.0,0.000327,30]
[334337353,1722993041247,-150.112233,0.000327,7]
[334337355,1722993041264,-150.112233,0.000327,8]
[334337357,1722993041274,-3585.7327823,0.00032733,2]
[334337359,1722993041284,-1787.0829667,0.00032776,2]
[334337361,1722993041294,-872.33927067,0.00032776,2]
[334337363,1722993041304,-150.112233,0.000328,7]
[334337365,1722993041313,-150.112233,0.000328,9]
[334337367,1722993041323,-150.112233,0.000328,9]
[334337369,1722993041333,-1197.08,0.00032865,7]
[334337372,1722993041346,-1197.08,0.00032865,7]
[334337374,1722993041358,-1197.08,0.00032865,7]
[334337376,1722993041367,-1197.08,0.00032865,7]
[334337378,1722993041377,-24437.1212008,0.00032865,4]
[334337380,1722993041388,-171059.848406,0.00032866,4]
[334337382,1722993041398,-1197.08,0.00032875,7]
[334337384,1722993041408,-1197.08,0.00032875,7]
[334337385,1722993041417,-1197.08,0.00032875,7]
[334337387,1722993041429,-1197.08,0.00032875,7]
[334337389,1722993041440,-773.75451946,0.00032875,7]
[334337412,1722993041657,-412.94081029,0.00021642,2]
[334337414,1722993041667,-156.05197447,0.00021642,2]
[334337416,1722993041678,-423.32548054,0.00032875,7]
[334337418,1722993041687,-1197.08,0.00032875,7]
[334337420,1722993041697,-1197.08,0.00032875,7]
[334337422,1722993041709,-1197.08,0.00032875,7]
[334337424,1722993041720,-1197.08,0.00032875,7]
[334337426,1722993041730,-1197.08,0.00032875,7]
[334337428,1722993041743,-1197.08,0.00032875,7]
[334337430,1722993041756,-1197.08,0.00032875,7]